bitfinex/quotes_BTCUSD_20240623
["timestamp","ask_amount","ask_price","bid_price","bid_amount"]
[1719129485007,0.26499234,64504.0,64503.0,0.19218096]
[1719129485250,0.25533048,64504.0,64503.0,0.19218096]
[1719129485464,0.26499224,64504.0,64503.0,0.19218096]
[1719129491550,0.25533048,64504.0,64503.0,0.19218096]
[1719129491762,0.26499224,64504.0,64503.0,0.19218096]
[1719129494699,0.25533048,64504.0,64503.0,0.19218096]
[1719129494903,0.26499224,64504.0,64503.0,0.19218096]
[1719129497881,0.25533048,64504.0,64503.0,0.19218096]
[1719129498090,0.26499224,64504.0,64503.0,0.19218096]
[1719129504151,0.25533048,64504.0,64503.0,0.19218096]
[1719129504395,0.2649923,64504.0,64503.0,0.19218096]
[1719129505056,0.2649923,64504.0,64503.0,0.18056112]
[1719129505057,0.26471736,64504.0,64503.0,0.18056112]
[1719129505509,0.26471736,64504.0,64503.0,0.19218096]
[1719129507455,0.26471735,64504.0,64503.0,0.19218096]
[1719129508483,0.26471735,64504.0,64503.0,0.19311596]
[1719129510425,0.25505554,64504.0,64503.0,0.19311596]
[1719129510633,0.26471735,64504.0,64503.0,0.19311596]
[1719129515193,0.26416746,64504.0,64503.0,0.19311596]
[1719129515822,0.57422546,64504.0,64503.0,0.19311596]
[1719129516694,0.56456365,64504.0,64503.0,0.19311596]
[1719129516903,0.57422547,64504.0,64503.0,0.19311596]
[1719129519798,0.56456365,64504.0,64503.0,0.19311596]
[1719129520008,0.5742254,64504.0,64503.0,0.19311596]
[1719129520225,0.56456365,64504.0,64503.0,0.19311596]
[1719129520433,0.5742254,64504.0,64503.0,0.19311596]
[1719129522189,0.5742254,64504.0,64503.0,0.27881596]
[1719129522190,0.11051175,64504.0,64503.0,0.27881596]
[1719129522405,0.01051175,64504.0,64503.0,0.34981596]
[1719129522616,0.11051175,64504.0,64503.0,0.34981596]
[1719129522834,0.10085,64504.0,64503.0,0.34981596]
[1719129523047,0.11051168,64504.0,64503.0,0.34981596]
[1719129524561,0.11051168,64504.0,64503.0,0.35008922]
[1719129526149,0.01051166,64504.0,64503.0,0.35008922]
[1719129526863,0.01051166,64504.0,64503.0,0.32208922]
[1719129527344,0.01051166,64504.0,64503.0,0.35008922]
[1719129528045,0.01051166,64504.0,64503.0,0.36408922]
[1719129529128,0.01051166,64504.0,64503.0,0.35008922]
[1719129529554,0.00085,64504.0,64503.0,0.36408922]
[1719129529768,0.01051166,64504.0,64503.0,0.36408922]
[1719129532481,0.01051164,64504.0,64503.0,0.36381596]
[1719129533733,0.01051164,64504.0,64503.0,0.36408922]
[1719129535178,0.01023651,64504.0,64503.0,0.36408922]
[1719129535390,0.01023651,64504.0,64503.0,0.29308922]
[1719129535600,0.01023615,64504.0,64503.0,0.29308922]
[1719129536222,0.01023615,64504.0,64503.0,0.29281596]
[1719129537288,0.01023615,64504.0,64503.0,0.29308922]
[1719129537925,0.01023615,64504.0,64503.0,0.29281596]
[1719129538619,0.00057487,64504.0,64503.0,0.29281596]
[1719129538783,0.01023638,64504.0,64503.0,0.29281596]
[1719129539027,0.00057487,64504.0,64503.0,0.29281596]
[1719129539229,0.01023643,64504.0,64503.0,0.29281596]
[1719129542388,0.01023643,64504.0,64503.0,0.29308922]
[1719129544132,0.01023645,64504.0,64503.0,0.29308922]
[1719129544358,0.01023645,64504.0,64503.0,0.29281596]
[1719129545237,0.00968608,64504.0,64503.0,0.29281596]
[1719129547227,0.00968598,64504.0,64503.0,0.29281596]
[1719129547635,0.00968594,64504.0,64503.0,0.29281596]
[1719129548700,0.00968594,64504.0,64503.0,0.28119612]
[1719129548852,0.0096858,64504.0,64503.0,0.29272364]
[1719129550381,2.45e-05,64504.0,64503.0,0.29272364]
[1719129550592,0.00968596,64504.0,64503.0,0.29272364]
[1719129552983,0.00968596,64504.0,64503.0,0.2929969]
[1719129553848,0.00968596,64504.0,64503.0,0.29272364]
[1719129554882,0.00968596,64504.0,64503.0,0.2929969]
[1719129555101,0.00941083,64504.0,64503.0,0.2929969]
[1719129556625,0.0194252,64505.0,64503.0,0.2929969]
[1719129556826,0.255024,64506.0,64503.0,0.2929969]
[1719129557451,0.255024,64506.0,64504.0,0.00027326]
[1719129557671,0.255024,64506.0,64505.0,0.15256112]
[1719129558108,0.255024,64506.0,64505.0,0.16416444]
[1719129559658,0.27903823,64506.0,64505.0,0.16416444]
[1719129560494,0.27903823,64506.0,64505.0,0.17816444]
[1719129561363,0.27903823,64506.0,64505.0,0.19216444]
[1719129561845,0.27903823,64506.0,64505.0,0.27856444]
[1719129563437,0.27903823,64506.0,64505.0,0.26456444]
[1719129564677,0.27903823,64506.0,64505.0,0.27856444]
[1719129565112,0.28814934,64506.0,64505.0,0.26456444]
[1719129565290,0.28814934,64506.0,64505.0,0.27856444]
[1719129565495,0.28814934,64506.0,64505.0,0.26456444]
[1719129565907,0.28814934,64506.0,64505.0,0.27856444]
[1719129566285,0.28814934,64506.0,64505.0,0.19216444]
[1719129566477,0.28814934,64506.0,64505.0,0.27836444]
[1719129575166,0.28787421,64506.0,64505.0,0.27836444]
[1719129575712,0.28787434,64506.0,64505.0,0.27836444]
[1719129576767,0.28787434,64506.0,64505.0,0.26436444]
[1719129576970,0.27821275,64506.0,64505.0,0.26436444]
[1719129577305,0.28787434,64506.0,64505.0,0.27836444]
[1719129577667,0.28787434,64506.0,64505.0,0.25036444]
[1719129578079,0.28787421,64506.0,64505.0,0.26436444]
[1719129578953,0.28787421,64506.0,64505.0,0.27836444]
[1719129579693,0.28787421,64506.0,64505.0,0.29236444]
[1719129581174,0.27821275,64506.0,64505.0,0.29236444]
[1719129581305,0.28787427,64506.0,64505.0,0.29236444]
[1719129582765,0.3285233,64506.0,64505.0,0.29236444]
[1719129584358,0.27821275,64506.0,64505.0,0.29236444]
[1719129584571,0.32863799,64506.0,64505.0,0.29236444]
[1719129584785,0.27821275,64506.0,64505.0,0.29236444]
[1719129584973,0.32863799,64506.0,64505.0,0.29236444]
[1719129585192,0.3280882,64506.0,64505.0,0.29236444]
[1719129586047,0.32806677,64506.0,64505.0,0.29236444]
[1719129586830,0.28732461,64506.0,64505.0,0.29236444]
[1719129587495,0.28732455,64506.0,64505.0,0.29236444]
[1719129590768,0.2873246,64506.0,64505.0,0.29236444]
[1719129593361,0.32806021,64506.0,64505.0,0.29236444]
[1719129593766,0.27766296,64506.0,64505.0,0.29236444]
[1719129593967,0.32806027,64506.0,64505.0,0.29236444]
[1719129594150,0.27766296,64506.0,64505.0,0.29236444]
[1719129594346,0.02218386,64506.0,64505.0,0.29236444]
[1719129594570,0.00966169,64506.0,64505.0,0.29236444]
[1719129594980,0.16468769,64506.0,64505.0,0.29236444]
[1719129595204,0.16413819,64506.0,64505.0,0.29236444]
[1719129595604,0.155026,64506.0,64505.0,0.29236444]
[1719129596507,0.255026,64506.0,64505.0,0.29236444]
[1719129600891,0.255026,64506.0,64505.0,0.2926377]
[1719129602280,0.255026,64506.0,64505.0,0.29236444]
[1719129602500,0.565074,64506.0,64505.0,0.29236444]
[1719129602640,0.565074,64506.0,64505.0,0.27836444]
[1719129603202,0.565074,64506.0,64505.0,0.29236444]
[1719129604055,0.565074,64506.0,64505.0,0.26436444]
[1719129605109,0.565074,64506.0,64505.0,0.25129944]
[1719129605283,0.57446048,64506.0,64505.0,0.26529944]
[1719129605491,0.57531048,64506.0,64505.0,0.26529944]
[1719129605689,0.57531053,64506.0,64505.0,0.26529944]
[1719129606090,0.57531053,64506.0,64505.0,0.27929944]
[1719129607078,0.57531053,64506.0,64505.0,0.34209944]
[1719129607508,0.11051168,64506.0,64505.0,0.27419944]
[1719129607752,0.11051168,64506.0,64505.0,0.33699944]
[1719129607753,0.01051168,64506.0,64505.0,0.33699944]
[1719129608860,0.01051138,64506.0,64505.0,0.33699944]
[1719129609283,0.01051138,64506.0,64505.0,0.3372727]
[1719129611755,0.00085,64506.0,64505.0,0.3372727]
[1719129611958,0.01051138,64506.0,64505.0,0.3372727]
[1719129612360,0.00085,64506.0,64505.0,0.3372727]
[1719129612630,0.01051138,64506.0,64505.0,0.3372727]
[1719129613455,0.00085,64506.0,64505.0,0.337199]
[1719129613656,0.01051138,64506.0,64505.0,0.337199]
[1719129615008,0.01051126,64506.0,64505.0,0.337199]
[1719129615208,0.01023634,64506.0,64505.0,0.337199]
[1719129615433,0.01023634,64506.0,64505.0,0.33692574]
[1719129615610,0.01023634,64506.0,64505.0,0.337199]
[1719129616249,0.01023634,64506.0,64505.0,0.33692574]
[1719129617813,0.01023634,64506.0,64505.0,1.622384]
[1719129618028,0.00057508,64506.0,64505.0,1.845384]
[1719129619476,0.00057508,64506.0,64505.0,1.831384]
[1719129619938,0.00057508,64506.0,64505.0,1.817384]
[1719129620083,0.00057508,64506.0,64505.0,1.831384]
[1719129620279,0.00057508,64506.0,64505.0,1.845384]
[1719129620494,0.00057508,64506.0,64505.0,1.831384]
[1719129620692,0.00057508,64506.0,64505.0,1.817384]
[1719129621102,0.00057508,64506.0,64505.0,1.831384]
[1719129621488,0.00057508,64506.0,64505.0,1.845384]
[1719129622055,0.00057508,64506.0,64505.0,1.831384]
[1719129622677,0.00057508,64506.0,64505.0,1.817384]
[1719129623655,0.00057508,64506.0,64505.0,1.831384]
[1719129623869,0.00057508,64506.0,64505.0,1.845384]
[1719129624302,0.00057508,64506.0,64505.0,1.859384]
[1719129624509,0.00057508,64506.0,64505.0,1.817384]
[1719129624720,0.00057508,64506.0,64505.0,1.869284]
[1719129624926,0.00057508,64506.0,64505.0,1.883284]
[1719129625361,0.00030082,64506.0,64505.0,1.869284]
[1719129625787,0.00030082,64506.0,64505.0,1.883284]
[1719129625989,0.00030082,64506.0,64505.0,1.897284]
[1719129626611,0.00030082,64506.0,64505.0,1.911284]
[1719129627034,0.00030082,64506.0,64505.0,1.897284]
[1719129627906,0.00030082,64506.0,64505.0,1.911284]
[1719129628305,0.00030082,64506.0,64505.0,1.897284]
[1719129628699,0.00030082,64506.0,64505.0,1.911284]
[1719129635308,0.00060071,64507.0,64506.0,1.63394126]
[1719129635549,0.00060071,64507.0,64506.0,1.80950238]
[1719129635809,0.00060071,64507.0,64506.0,1.82108026]
[1719129636258,0.00060071,64507.0,64506.0,1.87298026]
[1719129636631,0.00060071,64507.0,64506.0,1.88698026]
[1719129637819,0.00060071,64507.0,64506.0,1.90098026]
[1719129645339,0.00032601,64507.0,64506.0,1.90098026]
[1719129650487,0.00032601,64507.0,64506.0,1.88698026]
[1719129651315,0.00032601,64507.0,64506.0,1.90098026]
[1719129651530,0.00032601,64507.0,64506.0,1.88698026]
[1719129651723,0.00032601,64507.0,64506.0,1.90098026]
[1719129652509,0.00032601,64507.0,64506.0,1.50058026]
[1719129652715,0.00032601,64507.0,64506.0,1.52233226]
[1719129653727,0.00032601,64507.0,64506.0,1.50833226]
[1719129654192,0.00032601,64507.0,64506.0,1.52233226]
[1719129654603,0.00032601,64507.0,64506.0,1.50833226]
[1719129655039,0.00032601,64507.0,64506.0,1.44243226]
[1719129655414,0.06372576,64511.0,64510.0,0.74531626]
[1719129655634,0.06372576,64511.0,64510.0,0.97277738]
[1719129655864,0.06372576,64511.0,64510.0,0.98435344]
[1719129658352,0.06372576,64511.0,64510.0,0.99835344]
[1719129658867,0.06372576,64511.0,64510.0,1.01235344]
[1719129659070,0.06372576,64511.0,64510.0,1.02635344]
[1719129660264,0.06372576,64511.0,64510.0,0.71632444]
[1719129660635,0.06372576,64511.0,64510.0,0.66442444]
[1719129660842,0.06372576,64511.0,64510.0,0.71632444]
[1719129661641,0.06962576,64511.0,64510.0,0.48613718]
[1719129661851,0.14892576,64511.0,64510.0,0.48641044]
[1719129665464,0.14865108,64511.0,64510.0,0.48641044]
[1719129668308,0.06935108,64511.0,64510.0,0.48641044]
[1719129670223,0.06935108,64511.0,64510.0,0.48613718]
[1719129670224,0.15385108,64511.0,64510.0,0.48613718]
[1719129670586,0.15385108,64511.0,64510.0,0.48641044]
[1719129672323,0.15385108,64511.0,64510.0,0.48613718]
[1719129672587,0.15385108,64511.0,64510.0,0.48734544]
[1719129672786,0.15385108,64511.0,64510.0,0.48707218]
[1719129673034,0.15385108,64511.0,64510.0,0.48734544]
[1719129674172,0.15385108,64511.0,64510.0,0.48707218]
[1719129677671,0.15385108,64511.0,64510.0,0.48734544]
[1719129678116,0.15385108,64511.0,64510.0,0.48707218]
[1719129678668,0.15385108,64511.0,64510.0,0.38707218]
[1719129679017,0.15385108,64511.0,64510.0,0.48707218]
[1719129680593,0.15385108,64511.0,64510.0,0.38707218]
[1719129680954,0.15385108,64511.0,64510.0,0.48707218]
[1719129685183,0.06895108,64511.0,64510.0,0.48734544]
[1719129685404,0.0686764,64511.0,64510.0,0.48734544]
[1719129687844,0.0686764,64511.0,64510.0,0.48707218]
[1719129692373,0.0686764,64511.0,64510.0,0.38707218]
[1719129692578,0.0686764,64511.0,64510.0,0.48707218]
[1719129694329,0.2236884,64511.0,64510.0,0.28707218]
[1719129694472,0.6105124,64511.0,64510.0,0.28707218]
[1719129694672,0.3004884,64511.0,64510.0,0.28707218]
[1719129695323,0.29994978,64511.0,64510.0,0.28707218]
[1719129695522,0.29994978,64511.0,64510.0,0.27307218]
[1719129695745,0.29994978,64511.0,64510.0,0.28707218]
[1719129695944,0.29994978,64511.0,64510.0,0.38707218]
[1719129696500,0.29994978,64511.0,64510.0,0.35907218]
[1719129696901,0.29994978,64511.0,64510.0,0.37307218]
[1719129697342,0.14493778,64511.0,64510.0,0.37307218]
[1719129699328,0.29994978,64511.0,64510.0,0.37307218]
[1719129700455,0.29994978,64511.0,64510.0,0.27307218]
[1719129701178,0.29994978,64511.0,64510.0,0.37307218]
[1719129701341,0.29994978,64511.0,64510.0,0.27307218]
[1719129702685,0.00085,64512.0,64510.0,0.27307218]
[1719129702948,0.155859,64512.0,64511.0,0.15256112]
[1719129703146,0.155859,64512.0,64511.0,0.16219226]
[1719129703828,0.155859,64512.0,64511.0,0.26219226]
[1719129704436,0.155859,64512.0,64511.0,0.17619226]
[1719129705157,0.155859,64512.0,64511.0,0.27619226]
[1719129705767,0.219359,64512.0,64511.0,0.27619226]
[1719129705979,0.219359,64512.0,64511.0,0.29019226]
[1719129708821,0.219359,64512.0,64511.0,0.19019226]
[1719129709024,0.219359,64512.0,64511.0,0.29019226]
[1719129710516,10.219359,64512.0,64511.0,0.29019226]
[1719129710877,10.219359,64512.0,64511.0,0.28056112]
[1719129714945,10.219359,64512.0,64511.0,0.18056112]
[1719129715156,10.219359,64512.0,64511.0,0.28056112]
[1719129715710,10.21908424,64512.0,64511.0,0.28056112]
[1719129716120,10.06407524,64512.0,64511.0,0.28056112]
[1719129719466,10.21908424,64512.0,64511.0,0.28056112]
[1719129720093,10.52910324,64512.0,64511.0,0.28056112]
[1719129721633,10.52910324,64512.0,64511.0,0.18056112]
[1719129722390,10.52910324,64512.0,64511.0,0.28056112]
[1719129723550,10.52910324,64512.0,64511.0,0.18056112]
[1719129723955,10.52910324,64512.0,64511.0,0.28056112]
[1719129724281,10.52910324,64512.0,64511.0,0.18056112]
[1719129724486,10.52910324,64512.0,64511.0,0.28056112]
[1719129724688,10.52910324,64512.0,64511.0,0.18056112]
[1719129725435,10.52882729,64512.0,64511.0,0.28056112]
[1719129725639,10.52882729,64512.0,64511.0,0.18056112]
[1719129725957,10.52882729,64512.0,64511.0,0.28056112]
[1719129726167,10.52882729,64512.0,64511.0,0.18056112]
[1719129726991,10.83844629,64512.0,64511.0,0.18056112]
[1719129727232,11.14846529,64512.0,64511.0,0.18056112]
[1719129727380,11.16819203,64512.0,64511.0,0.18056112]
[1719129727538,11.26819203,64512.0,64511.0,0.18056112]
[1719129727754,11.36131804,64512.0,64511.0,0.18056112]
[1719129731611,11.26819203,64512.0,64511.0,0.18056112]
[1719129735466,11.26791677,64512.0,64511.0,0.18056112]
[1719129736603,11.26791677,64512.0,64511.0,0.18149612]
[1719129737202,11.36098496,64512.0,64511.0,0.18149612]
[1719129737669,11.38391612,64512.0,64511.0,0.18149612]
[1719129737873,11.29084793,64512.0,64511.0,0.18149612]
[1719129738072,11.38390165,64512.0,64511.0,0.18149612]
[1719129738512,11.38389965,64512.0,64511.0,0.18149612]
[1719129738717,11.36096849,64512.0,64511.0,0.18149612]
[1719129739141,11.3840426,64512.0,64511.0,0.18149612]
[1719129739356,11.29099088,64512.0,64511.0,0.18149612]
[1719129739559,11.36095668,64512.0,64511.0,0.18149612]
[1719129739734,11.38403193,64512.0,64511.0,0.18149612]
[1719129740740,11.36095668,64512.0,64511.0,0.18149612]
[1719129740944,11.38344346,64512.0,64511.0,0.18149612]
[1719129741579,11.38343699,64512.0,64511.0,0.18149612]
[1719129742034,11.26791677,64512.0,64511.0,0.18149612]
[1719129742336,11.38344714,64512.0,64511.0,0.18149612]
[1719129743225,11.38344095,64512.0,64511.0,0.18149612]
[1719129743989,11.38344095,64512.0,64511.0,0.16749612]
[1719129744206,11.38344095,64512.0,64511.0,0.15349612]
[1719129744612,11.38344095,64512.0,64511.0,0.18149612]
[1719129744896,11.38336787,64512.0,64511.0,0.18149612]
[1719129745225,11.60037141,64512.0,64511.0,0.028935]
[1719129745424,11.61009574,64512.0,64511.0,0.028935]
[1719129746664,11.6174977,64512.0,64511.0,0.028935]
[1719129747388,11.6174977,64512.0,64511.0,0.014935]
[1719129747800,11.5876601,64512.0,64511.0,0.028935]
[1719129747961,11.6175649,64512.0,64511.0,0.000935]
[1719129748365,11.6175649,64512.0,64511.0,0.028935]
[1719129748989,11.6175649,64512.0,64511.0,0.014935]
[1719129749540,11.74061682,64512.0,64511.0,0.014935]
[1719129749923,11.6175649,64512.0,64511.0,0.014935]
[1719129750079,11.6175649,64512.0,64511.0,0.028935]
[1719129751171,11.6250592,64512.0,64511.0,0.028935]
[1719129751355,11.5947601,64512.0,64511.0,0.028935]
[1719129751574,11.62505932,64512.0,64511.0,0.028935]
[1719129751914,12.08763246,64512.0,64511.0,0.028935]
[1719129752368,12.22700924,64512.0,64511.0,0.028935]
[1719129753514,12.18088246,64512.0,64511.0,0.028935]
[1719129754135,12.1810366,64512.0,64511.0,0.028935]
[1719129754549,12.02848246,64512.0,64511.0,0.028935]
[1719129755504,12.02820656,64512.0,64511.0,0.028935]
[1719129755883,12.05714156,64512.0,64511.0,0.028935]
[1719129756569,12.05715344,64512.0,64511.0,0.028935]
[1719129757294,12.05717821,64512.0,64511.0,0.028935]
[1719129758768,12.20973235,64512.0,64511.0,0.028935]
[1719129759424,12.22067821,64512.0,64511.0,0.02560172]
[1719129760154,12.22067821,64512.0,64511.0,0.01744172]
[1719129760384,12.1901882,64512.0,64511.0,0.01744172]
[1719129760546,12.22053008,64512.0,64511.0,0.01744172]
[1719129761345,12.37308422,64512.0,64511.0,0.01744172]
[1719129761995,12.37305828,64512.0,64511.0,0.01744172]
[1719129763681,12.37305812,64512.0,64511.0,0.01744172]
[1719129766820,12.37305339,64512.0,64511.0,0.01744172]
[1719129770041,12.37305339,64512.0,64511.0,0.01837672]
[1719129770245,12.34274234,64512.0,64511.0,0.01837672]
[1719129770470,12.37400052,64512.0,64511.0,0.01837672]
[1719129770673,12.44888104,64512.0,64511.0,0.01837672]
[1719129771525,12.58807934,64512.0,64511.0,0.01837672]
[1719129772088,12.48281358,64512.0,64511.0,0.01837672]
[1719129772282,12.44899589,64512.0,64511.0,0.01837672]
[1719129772674,12.58821713,64512.0,64511.0,0.01837672]
[1719129773255,12.48282898,64512.0,64511.0,0.01837672]
[1719129773471,12.5883293,64512.0,64511.0,0.01837672]
[1719129773895,12.5883293,64512.0,64511.0,0.01474106]
[1719129775499,12.58805314,64512.0,64511.0,0.01474106]
[1719129776376,12.58838814,64512.0,64511.0,0.01474106]
[1719129777655,12.4491515,64512.0,64511.0,0.01474106]
[1719129779541,12.44922175,64512.0,64511.0,0.01474106]
[1719129779923,12.34331618,64512.0,64511.0,0.01474106]
[1719129780103,12.44922175,64512.0,64511.0,0.01474106]
[1719129781894,12.34331618,64512.0,64511.0,0.01474106]
[1719129782092,12.44920849,64512.0,64511.0,0.01474106]
[1719129785606,12.44893323,64512.0,64511.0,0.01474106]
[1719129787717,12.29637909,64512.0,64511.0,0.01474106]
[1719129788197,12.29636053,64512.0,64511.0,0.01474106]
[1719129788601,12.29638792,64512.0,64511.0,0.01474106]
[1719129789565,12.45330004,64512.0,64511.0,0.01474106]
[1719129789790,12.45333721,64512.0,64511.0,0.01474106]
[1719129790115,12.60589135,64512.0,64511.0,0.01474106]
[1719129790524,12.44894206,64512.0,64511.0,0.01474106]
[1719129791607,12.44184206,64512.0,64511.0,0.01474106]
[1719129794537,12.4414939,64512.0,64511.0,0.01474106]
[1719129797577,12.44155725,64512.0,64511.0,0.01474106]
[1719129797962,12.33594092,64512.0,64511.0,0.01474106]
[1719129798165,12.44155594,64512.0,64511.0,0.01474106]
[1719129799359,12.44143929,64512.0,64511.0,0.01474106]
[1719129800729,12.44144215,64512.0,64511.0,0.01474106]
[1719129803827,12.33594092,64512.0,64511.0,0.01474106]
[1719129804045,12.37809446,64512.0,64511.0,0.01474106]
[1719129805701,12.3778192,64512.0,64511.0,0.01474106]
[1719129806423,12.22526506,64512.0,64511.0,0.01474106]
[1719129807255,12.22535278,64512.0,64511.0,0.01423829]
[1719129807682,12.19492554,64512.0,64511.0,0.01423829]
[1719129807936,12.22536196,64512.0,64511.0,0.01423829]
[1719129808858,12.22558808,64512.0,64511.0,0.01423829]
[1719129809379,12.31847223,64512.0,64511.0,0.01423829]
[1719129810160,12.2879142,64512.0,64511.0,0.01423829]
[1719129810364,12.31846796,64512.0,64511.0,0.01423829]
[1719129813355,12.31846375,64512.0,64511.0,0.01423829]
[1719129814456,12.31847473,64512.0,64511.0,0.01423829]
[1719129816559,12.31793472,64512.0,64511.0,0.01423829]
[1719129816968,12.31791809,64512.0,64511.0,0.01423829]
[1719129822899,12.21289567,64512.0,64511.0,0.01423829]
[1719129823106,12.31790525,64512.0,64511.0,0.01423829]
[1719129823307,12.2250211,64512.0,64511.0,0.01423829]
[1719129825971,12.22522332,64512.0,64511.0,0.01423829]
[1719129826167,12.15046308,64512.0,64511.0,0.01423829]
[1719129826380,12.19493747,64512.0,64511.0,0.01423829]
[1719129826633,12.22538807,64512.0,64511.0,0.01423829]
[1719129827069,12.37794221,64512.0,64511.0,0.01423829]
[1719129829056,12.34751482,64512.0,64511.0,0.01423829]
[1719129829233,12.37799295,64512.0,64511.0,0.01423829]
[1719129832253,12.37799295,64512.0,64511.0,0.09493829]
[1719129832254,12.27256566,64512.0,64511.0,0.09493829]
[1719129832468,12.37822385,64512.0,64511.0,0.09493829]
[1719129833463,12.22566971,64512.0,64511.0,0.09493829]
[1719129833890,11.9591803,64512.0,64511.0,0.09493829]
[1719129834704,11.9491803,64512.0,64511.0,0.09493829]
[1719129834948,11.9591803,64512.0,64511.0,0.09493829]
[1719129835145,11.9491803,64512.0,64511.0,0.09493829]
[1719129835298,11.84352211,64512.0,64511.0,0.09493829]
[1719129835514,11.96089972,64512.0,64511.0,0.09493829]
[1719129835700,11.87476508,64512.0,64511.0,0.09493829]
[1719129835908,11.95062442,64512.0,64511.0,0.09493829]
[1719129836115,11.96062442,64512.0,64511.0,0.09493829]
[1719129836354,11.95062442,64512.0,64511.0,0.09493829]
[1719129836557,11.96062442,64512.0,64511.0,0.09493829]
[1719129836768,11.95062442,64512.0,64511.0,0.09493829]
[1719129837507,11.96062442,64512.0,64511.0,0.09493829]
[1719129838261,11.95062442,64512.0,64511.0,0.09493829]
[1719129838466,11.84324685,64512.0,64511.0,0.09493829]
[1719129838662,11.96084457,64512.0,64511.0,0.09493829]
[1719129838866,11.95084457,64512.0,64511.0,0.09493829]
[1719129840041,11.96084457,64512.0,64511.0,0.09493829]
[1719129840238,11.65082557,64512.0,64511.0,0.09493829]
[1719129841103,11.65099288,64512.0,64511.0,0.15583829]
[1719129841315,11.58909288,64512.0,64511.0,0.15583829]
[1719129841500,11.65099288,64512.0,64511.0,0.15583829]
[1719129841726,11.48749288,64512.0,64511.0,0.15583829]
[1719129843993,11.48786411,64512.0,64511.0,0.15583829]
[1719129844216,11.4878641,64512.0,64511.0,0.15583829]
[1719129844436,11.45594136,64512.0,64511.0,0.15583829]
[1719129844729,11.48786403,64512.0,64511.0,0.15583829]
[1719129847141,11.37972785,64512.0,64511.0,0.15583829]
[1719129847362,11.48766147,64512.0,64511.0,0.15583829]
[1719129850123,11.48766147,64512.0,64511.0,0.09493829]
[1719129851716,11.48766147,64512.0,64511.0,0.08719829]
[1719129853590,11.48660321,64512.0,64511.0,0.08719829]
[1719129853716,11.37972785,64512.0,64511.0,0.08719829]
[1719129853928,11.48656812,64512.0,64511.0,0.08719829]
[1719129854958,11.48680245,64512.0,64511.0,0.08719829]
[1719129856461,11.48673685,64512.0,64511.0,0.08719829]
[1719129858165,11.63929099,64512.0,64511.0,0.08719829]
[1719129859018,11.63929099,64512.0,64511.0,0.00649829]
[1719129859326,11.94930999,64512.0,64511.0,0.00649829]
[1719129859744,11.6389871,64512.0,64511.0,0.00649829]
[1719129862848,11.63843821,64512.0,64511.0,0.00649829]
[1719129863258,11.63843823,64512.0,64511.0,0.00649829]
[1719129864398,11.63847083,64512.0,64511.0,0.00649829]
[1719129865902,11.94849114,64512.0,64511.0,0.00649829]
[1719129866243,11.94849472,64512.0,64511.0,0.00649829]
[1719129872227,11.94851669,64512.0,64511.0,0.00649829]
[1719129872606,11.84230099,64512.0,64511.0,0.00649829]
[1719129872805,11.94851816,64512.0,64511.0,0.00649829]
[1719129873875,11.84230099,64512.0,64511.0,0.00649829]
[1719129873995,11.9487594,64512.0,64511.0,0.00649829]
[1719129875581,11.94855535,64512.0,64511.0,0.00649829]
[1719129877200,11.94855535,64512.0,64511.0,0.00443004]
[1719129878594,11.94854827,64512.0,64511.0,0.00443004]
[1719129881769,11.84230099,64512.0,64511.0,0.00443004]
[1719129881980,11.9485385,64512.0,64511.0,0.00443004]
[1719129882193,11.94852598,64512.0,64511.0,0.00443004]
[1719129883447,11.94853737,64512.0,64511.0,0.00443004]
[1719129884847,11.84230099,64512.0,64511.0,0.00443004]
[1719129885048,11.94853559,64512.0,64511.0,0.00443004]
[1719129888072,11.87321037,64512.0,64511.0,0.00443004]
[1719129888229,11.94854154,64512.0,64511.0,0.00443004]
[1719129891201,11.84230099,64512.0,64511.0,0.00443004]
[1719129891433,11.94844932,64512.0,64511.0,0.00443004]
[1719129891985,11.94844932,64512.0,64511.0,0.08093004]
[1719129892395,11.84230099,64512.0,64511.0,0.08093004]
[1719129892599,11.94845435,64512.0,64511.0,0.08093004]
[1719129894519,11.94845115,64512.0,64511.0,0.08093004]
[1719129897613,11.84230099,64512.0,64511.0,0.08093004]
[1719129897820,11.94841981,64512.0,64511.0,0.08093004]
[1719129900651,11.84230099,64512.0,64511.0,0.08093004]
[1719129900861,11.94836622,64512.0,64511.0,0.08093004]
[1719129901069,11.84230099,64512.0,64511.0,0.08093004]
[1719129901281,11.94836622,64512.0,64511.0,0.08093004]
[1719129902378,11.94837999,64512.0,64511.0,0.08093004]
[1719129903263,11.84230099,64512.0,64511.0,0.08093004]
[1719129903474,11.94851385,64512.0,64511.0,0.08093004]
[1719129906272,11.84230099,64512.0,64511.0,0.08093004]
[1719129906476,11.63854235,64512.0,64511.0,0.08093004]
[1719129907192,11.48598821,64512.0,64511.0,0.08093004]
[1719129907409,11.47598821,64512.0,64511.0,0.14463004]
[1719129908509,11.48598821,64512.0,64511.0,0.14463004]
[1719129909336,11.48731797,64512.0,64511.0,0.14463004]
[1719129909533,11.48733776,64512.0,64511.0,0.14463004]
[1719129909981,11.4873353,64512.0,64511.0,0.14463004]
[1719129910995,11.48720602,64512.0,64511.0,0.14463004]
[1719129911795,11.47720602,64512.0,64511.0,0.14463004]
[1719129912378,11.47720987,64512.0,64511.0,0.14463004]
[1719129913080,11.47720987,64512.0,64511.0,0.13689004]
[1719129914579,11.48720987,64512.0,64511.0,0.13689004]
[1719129915218,11.47720987,64512.0,64511.0,0.13689004]
[1719129915843,11.48720987,64512.0,64511.0,0.13689004]
[1719129916558,11.47720987,64512.0,64511.0,0.13689004]
[1719129918311,11.48720987,64512.0,64511.0,0.13689004]
[1719129918486,11.48712717,64512.0,64511.0,0.13689004]
[1719129918688,11.58355469,64512.0,64511.0,0.13689004]
[1719129918895,11.47615537,64512.0,64511.0,0.13689004]
[1719129919100,11.58405652,64512.0,64511.0,0.13689004]
[1719129921531,11.47615537,64512.0,64511.0,0.13689004]
[1719129921898,11.58450479,64512.0,64511.0,0.13689004]
[1719129922305,11.56477805,64512.0,64511.0,0.13689004]
[1719129922513,11.58450479,64512.0,64511.0,0.13689004]
[1719129924095,11.59450479,64512.0,64511.0,0.13689004]
[1719129924692,11.58450479,64512.0,64511.0,0.13689004]
[1719129924865,11.58464195,64512.0,64511.0,0.13689004]
[1719129925790,11.47615537,64512.0,64511.0,0.13689004]
[1719129925991,11.47794141,64512.0,64511.0,0.13689004]
[1719129928092,11.47793446,64512.0,64511.0,0.13689004]
[1719129928543,11.4779344,64512.0,64511.0,0.13689004]
[1719129931211,11.47794129,64512.0,64511.0,0.13689004]
[1719129934276,11.47794129,64512.0,64511.0,0.13782504]
[1719129934277,11.47808831,64512.0,64511.0,0.13782504]
[1719129935898,11.55274197,64512.0,64511.0,0.13782504]
[1719129936705,11.56274197,64512.0,64511.0,0.06469463]
[1719129937441,11.56251022,64512.0,64511.0,0.06469463]
[1719129940516,11.45410535,64512.0,64511.0,0.06469463]
[1719129940723,11.56224677,64512.0,64511.0,0.06469463]
[1719129943787,11.56221097,64512.0,64511.0,0.06469463]